bitfinex/quotes_SOLUSD_20250908
["timestamp","ask_amount","ask_price","bid_price","bid_amount"]
[1757301333642,37.4,208.14,208.13,8.54538789]
[1757301334168,0.68,208.17,208.13,8.54538789]
[1757301334346,37.4,208.16,208.13,8.54538789]
[1757301334740,37.46,208.15,208.14,26.7]
[1757301335042,37.46,208.15,208.14,29.74069852]
[1757301335043,38.14,208.15,208.14,29.74069852]
[1757301335247,37.46,208.15,208.14,26.0]
[1757301335750,38.15,208.15,208.13,29.74069852]
[1757301335957,38.15,208.15,208.13,34.54534077]
[1757301336363,38.15,208.15,208.13,28.39481389]
[1757301336653,38.15,208.15,208.14,26.0]
[1757301336868,38.15,208.15,208.12,7.19967748]
[1757301337065,37.46,208.15,208.12,7.19967748]
[1757301337376,0.69,208.14,208.12,7.19967748]
[1757301337672,0.69,208.13,208.09,2.39481389]
[1757301337850,38.09,208.12,208.09,4.8055958]
[1757301338048,0.69,208.11,208.08,21.62957916]
[1757301338272,0.69,208.11,208.08,7.20060579]
[1757301339654,37.4,208.12,208.09,2.39481389]
[1757301339869,37.4,208.12,208.11,2.39481389]
[1757301340277,0.75,208.15,208.11,2.39481389]
[1757301340573,38.09,208.14,208.1,2.39481389]
[1757301340761,0.69,208.13,208.1,2.39481389]
[1757301340957,0.69,208.13,208.1,7.25852385]
[1757301341154,0.69,208.13,208.1,33.25852385]
[1757301341354,38.09,208.12,208.1,38.06368205]
[1757301342475,37.4,208.12,208.11,2.39481389]
[1757301343379,37.4,208.12,208.11,7.19996501]
[1757301343873,37.4,208.13,208.11,7.19996501]
[1757301344076,38.09,208.13,208.11,7.19996501]
[1757301345154,37.4,208.13,208.1,38.06389674]
[1757301345475,0.69,208.12,208.1,38.06389674]
[1757301345672,0.69,208.12,208.11,2.39481389]
[1757301346278,37.4,208.13,208.11,2.39481389]
[1757301346459,38.09,208.13,208.11,2.39481389]
[1757301346965,0.06,208.15,208.12,16.6804079]
[1757301347165,0.06,208.15,208.14,2.39481389]
[1757301348051,0.06,208.15,208.14,3.08481389]
[1757301348252,0.06,208.15,208.14,16.6804079]
[1757301349253,0.06,208.15,208.14,21.48486643]
[1757301349676,0.06,208.18,208.17,39.59559401]
[1757301349885,0.06,208.18,208.17,42.6804079]
[1757301350590,0.06,208.18,208.17,44.60316128]
[1757301351282,0.06,208.18,208.17,49.40692743]
[1757301351989,0.06,208.18,208.17,46.32211354]
[1757301352192,0.06,208.18,208.17,30.80376615]
[1757301352378,0.06,208.18,208.17,33.19858004]
[1757301354000,0.06,208.18,208.17,47.48417405]
[1757301355602,0.06,208.18,208.17,49.40701986]
[1757301356300,0.06,208.18,208.17,46.79417405]
[1757301357704,0.06,208.18,208.17,30.80376615]
[1757301357987,0.06,208.18,208.17,47.48417405]
[1757301358198,0.06,208.18,208.17,49.40701986]
[1757301358374,0.06,208.18,208.17,47.48417405]
[1757301358775,0.06,208.18,208.17,46.79417405]
[1757301358970,0.06,208.18,208.17,47.48417405]
[1757301359198,0.06,208.18,208.17,48.71701986]
[1757301359876,0.06,208.18,208.17,126.89417405]
[1757301361002,0.06,208.18,208.17,124.49936016]
[1757301361174,0.75,208.18,208.17,113.29858004]
[1757301361995,0.06,208.18,208.17,113.29858004]
[1757301362184,0.06,208.18,208.17,126.89417405]
[1757301363401,0.06,208.18,208.17,100.89417405]
[1757301364902,0.06,208.18,208.17,87.29858004]
[1757301366700,0.78,208.18,208.17,87.29858004]
[1757301368996,0.78,208.18,208.17,84.90376615]
[1757301369198,0.78,208.18,208.17,87.29858004]
[1757301369418,0.78,208.18,208.17,82.49481389]
[1757301370717,0.78,208.18,208.17,87.29858004]
[1757301371137,0.78,208.18,208.17,82.49481389]
[1757301371291,0.78,208.18,208.17,80.1]
[1757301371899,0.78,208.18,208.16,2.39481389]
[1757301372112,0.72,208.17,208.16,2.39481389]
[1757301373120,0.06,208.18,208.16,4.80395727]
[1757301373316,0.72,208.17,208.16,2.39481389]
[1757301374238,0.72,208.17,208.15,0.03]
[1757301374413,0.72,208.16,208.15,2.42481389]
[1757301374615,0.72,208.16,208.15,7.22904161]
[1757301375123,0.06,208.18,208.15,7.22904161]
[1757301375301,0.78,208.18,208.16,2.39481389]
[1757301375704,0.06,208.18,208.17,2.39481389]
[1757301376004,0.06,208.18,208.17,122.0904079]
[1757301376229,0.06,208.18,208.17,41.9904079]
[1757301377398,0.06,208.18,208.17,46.79417405]
[1757301377925,0.06,208.18,208.17,44.39936016]
[1757301378133,0.06,208.18,208.17,46.79417405]
[1757301380830,0.06,208.18,208.17,44.39936016]
[1757301381132,0.78,208.18,208.17,26.0]
[1757301381506,0.78,208.18,208.15,2.42481389]
[1757301381707,0.72,208.17,208.15,4.8341256]
[1757301381931,0.06,208.18,208.15,7.22893949]
[1757301382129,0.78,208.18,208.15,7.22893949]
[1757301382326,0.06,208.18,208.17,33.19858004]
[1757301382935,0.06,208.18,208.17,46.79417405]
[1757301383315,0.06,208.18,208.17,44.39936016]
[1757301383515,0.06,208.18,208.17,46.79417405]
[1757301385714,0.06,208.18,208.17,44.39936016]
[1757301386122,0.06,208.18,208.17,46.79417405]
[1757301388032,0.06,208.18,208.17,21.48417405]
[1757301388214,0.06,208.18,208.17,18.39936016]
[1757301388419,0.06,208.18,208.17,20.79417405]
[1757301388738,0.06,208.18,208.17,47.48417405]
[1757301388921,0.06,208.18,208.17,21.48417405]
[1757301389433,0.06,208.18,208.17,33.19858004]
[1757301390225,0.06,208.18,208.17,44.39936016]
[1757301390532,0.06,208.18,208.17,46.79417405]
[1757301392039,0.06,208.2,208.19,42.45559401]
[1757301392239,0.06,208.2,208.19,44.8504079]
[1757301392927,0.06,208.2,208.19,49.65371257]
[1757301394035,0.06,208.2,208.19,50.34371257]
[1757301394337,0.06,208.2,208.19,52.26618872]
[1757301395637,0.06,208.2,208.19,132.36618872]
[1757301396424,0.06,208.2,208.19,141.94544428]
[1757301397029,1e-08,208.2,208.19,141.94544428]
[1757301397519,1e-08,208.21,208.2,42.45559401]
[1757301397742,1e-08,208.21,208.2,59.93273742]
[1757301398132,1e-08,208.21,208.2,61.85512117]
[1757301398334,1e-08,208.21,208.2,57.35570606]
[1757301399626,1e-08,208.21,208.2,137.45570606]
[1757301401153,0.06,208.23,208.22,26.0]
[1757301401436,0.06,208.23,208.22,109.83732717]
[1757301401641,0.06,208.23,208.22,152.29292118]
[1757301401945,0.06,208.23,208.22,154.91512017]
[1757301402260,0.06,208.23,208.22,154.21512017]
[1757301403455,0.06,208.23,208.22,159.01773279]
[1757301403844,1e-08,208.23,208.22,159.71773279]
[1757301404028,1e-08,208.26,208.25,68.45559401]
[1757301404232,1e-08,208.26,208.25,72.19292118]
[1757301404437,1e-08,208.28,208.27,46.19292118]
[1757301404633,1e-08,208.28,208.27,130.03024835]
[1757301404830,1e-08,208.28,208.27,130.73024835]
[1757301405147,1e-08,208.28,208.27,49.93024835]
[1757301405336,0.68000001,208.28,208.27,22.13438082]
[1757301405856,0.18000001,208.28,208.27,22.13438082]
[1757301406042,0.06,208.3,208.28,13.59559401]
[1757301406546,0.06,208.3,208.29,22.13391978]
[1757301409048,0.06,208.3,208.29,24.75556471]
[1757301410350,0.06,208.3,208.29,104.85556471]
[1757301410548,0.06,208.3,208.29,102.93391978]
[1757301410858,0.06,208.3,208.29,104.8555647]
[1757301411238,0.06,208.3,208.29,102.93391978]
[1757301411434,0.06,208.3,208.29,133.7155647]
[1757301412836,0.06,208.3,208.29,133.0155647]
[1757301415752,0.06,208.3,208.29,129.27823753]
[1757301415956,0.74,208.3,208.29,80.1]
[1757301416347,0.74,208.3,208.29,8.53832577]
[1757301417069,0.74,208.3,208.29,22.13391978]
[1757301419067,0.74,208.3,208.28,110.90119111]
[1757301419267,0.68,208.29,208.28,124.49678512]
[1757301419650,0.68,208.29,208.28,106.1]
[1757301419955,0.68,208.29,208.26,8.53899079]
[1757301420154,0.68,208.28,208.26,8.53899079]
[1757301420353,0.68,208.27,208.26,8.53899079]
[1757301420570,0.68,208.27,208.26,4.80166362]
[1757301420871,0.68,208.29,208.26,8.53899079]
[1757301421074,0.68,208.29,208.28,4.80122911]
[1757301422070,0.68,208.29,208.27,13.59559401]
[1757301422370,0.68,208.28,208.26,13.59559401]
[1757301422772,0.68,208.27,208.26,13.59559401]
[1757301422960,0.68,208.27,208.25,110.9018836]
[1757301423161,0.68,208.26,208.25,153.35747761]
[1757301423374,0.68,208.26,208.25,124.49747761]
[1757301424256,0.68,208.28,208.27,26.0]
[1757301426185,0.68,208.28,208.27,26.03]
[1757301427071,0.68,208.28,208.27,0.03]
[1757301427365,4.41732717,208.28,208.27,0.03]
[1757301427580,9.21855628,208.28,208.27,0.03]
[1757301428276,46.53855628,208.28,208.27,0.03]
[1757301430586,58.54162906,208.28,208.24,0.03]
[1757301430760,3.73732717,208.25,208.24,0.03]
[1757301431277,9.24924793,208.25,208.24,0.03]
[1757301433793,46.56924793,208.25,208.24,0.03]
[1757301433962,9.24924793,208.25,208.24,0.03]
[1757301434168,46.56924793,208.25,208.24,0.03]
[1757301435179,9.24924793,208.25,208.24,0.03]
[1757301435379,46.56924793,208.25,208.24,0.03]
[1757301437786,72.16964386,208.25,208.17,0.03]
[1757301437975,3.73732717,208.18,208.17,0.03]
[1757301438172,41.05732717,208.18,208.17,0.03]
[1757301438390,41.76732717,208.18,208.17,0.03]
[1757301439286,46.57086257,208.18,208.17,0.03]
[1757301441088,9.25086257,208.18,208.17,0.03]
[1757301441290,46.57086257,208.18,208.17,0.03]
[1757301441474,9.25086257,208.18,208.17,0.03]
[1757301443196,38.03,208.18,208.17,0.03]
[1757301443370,26.71,208.2,208.17,0.03]
[1757301443574,3.73732717,208.18,208.17,0.03]
[1757301443785,41.05732717,208.18,208.17,0.03]
[1757301444791,41.76732717,208.18,208.17,0.03]
[1757301445487,37.32,208.18,208.17,0.03]
[1757301445675,41.05732717,208.18,208.17,0.03]
[1757301446594,3.73732717,208.18,208.17,0.03]
[1757301446796,5.51262452,208.22,208.17,0.73]
[1757301446974,3.73732717,208.18,208.17,0.03]
[1757301447377,41.05732717,208.18,208.17,0.03]
[1757301448493,0.06,208.25,208.17,0.73]
[1757301448494,3.73732717,208.2,208.17,0.73]
[1757301448698,0.06,208.25,208.18,43.33292118]
[1757301448877,37.32,208.24,208.2,3.73732717]
[1757301449075,37.32,208.24,208.21,0.7]
[1757301449687,0.06,208.25,208.21,4.43732717]
[1757301449895,37.32,208.23,208.22,0.7]
[1757301450590,37.32,208.23,208.22,5.50261262]
[1757301453580,37.32,208.23,208.2,3.73732717]
[1757301453581,41.05732717,208.23,208.18,44.03292118]
[1757301453786,3.73732717,208.21,208.17,0.03]
[1757301453993,37.32,208.2,208.17,0.03]
[1757301454194,37.32,208.2,208.17,0.73]
[1757301454584,41.05732717,208.2,208.17,0.73]
[1757301455000,41.05732717,208.2,208.17,0.03]
[1757301455201,3.73732717,208.18,208.17,0.03]
[1757301457894,41.05732717,208.2,208.17,0.03]
[1757301458207,3.73732717,208.19,208.17,0.03]
[1757301458408,2.39451617,208.19,208.17,0.03]
[1757301461510,3.11451617,208.19,208.17,0.03]
[1757301463808,3.11451617,208.18,208.17,0.03]
[1757301465211,7.91805157,208.18,208.17,0.03]
[1757301467506,7.91805157,208.18,208.15,0.03]
[1757301467713,2.39451617,208.16,208.15,0.03]
[1757301468308,3.11451617,208.16,208.15,0.03]
[1757301468896,26.0,208.15,208.14,0.03]
[1757301469100,28.39451617,208.15,208.14,0.03]
[1757301469408,29.11451617,208.15,208.14,0.03]
[1757301469811,33.91874389,208.15,208.14,0.03]
[1757301470398,47.5143379,208.15,208.12,0.03]
[1757301470599,2.39451617,208.13,208.12,0.03]
[1757301471006,3.11451617,208.13,208.12,0.03]
[1757301471803,7.91920554,208.13,208.12,0.03]
[1757301473507,45.23920554,208.13,208.12,0.03]
[1757301479812,7.91920554,208.13,208.12,0.03]
[1757301480013,45.23920554,208.13,208.12,0.03]
[1757301482830,44.51920554,208.13,208.12,0.03]
[1757301484224,7.19920554,208.13,208.12,0.03]
[1757301484533,39.71451617,208.13,208.12,0.7]
[1757301484825,44.51920554,208.13,208.12,0.7]
[1757301485038,44.51920554,208.13,208.12,0.03]
[1757301486113,45.22920554,208.13,208.12,0.03]
[1757301487435,44.51920554,208.13,208.12,0.03]
[1757301488511,45.22920554,208.13,208.12,0.03]
[1757301488829,70.32737529,208.13,208.11,0.03]
[1757301489026,11.97258085,208.12,208.11,0.03]
[1757301489217,16.77750108,208.12,208.11,0.03]
[1757301489414,19.41219734,208.12,208.11,0.03]
[1757301489612,9.83413266,208.12,208.11,0.03]
[1757301489807,9.12413266,208.12,208.11,0.03]
[1757301490012,44.5194364,208.12,208.11,0.03]
[1757301492031,45.2294364,208.12,208.11,0.03]
[1757301493027,54.80750108,208.12,208.11,0.03]
[1757301493209,68.40309509,208.12,208.11,0.03]
[1757301493410,58.82503041,208.12,208.11,0.03]
[1757301494226,45.2294364,208.12,208.11,0.03]
[1757301495831,44.5194364,208.12,208.11,0.03]
[1757301497614,45.2294364,208.12,208.11,0.03]
[1757301497820,54.80750108,208.12,208.11,0.03]
[1757301498621,68.40309509,208.12,208.11,0.03]
[1757301499834,70.32788397,208.12,208.11,0.03]
[1757301500129,26.0,208.06,208.05,0.03]
[1757301500330,39.71451617,208.06,208.05,0.03]
[1757301500525,44.52082204,208.06,208.05,0.03]
[1757301501623,340.29258085,208.03,208.02,0.03]
[1757301501822,341.00258085,208.03,208.02,0.03]
[1757301502025,355.44405677,208.03,208.02,0.03]
[1757301502219,355.44405677,208.03,207.97,0.68]
[1757301502442,7.2026708,207.98,207.97,0.68]
[1757301502622,44.5226708,207.98,207.97,0.68]
[1757301502819,44.5226708,207.98,207.95,0.68]
[1757301503020,2.39451617,207.96,207.93,37.02684414]
[1757301503242,2.39451617,207.96,207.48,685.26813503]
[1757301503243,2.39451617,207.94,207.85,2.39451617]
[1757301503431,2.39451617,207.9,207.85,2.39451617]
[1757301503632,37.32,207.89,207.86,0.68]
[1757301503942,2.39451617,207.91,207.86,0.68]
[1757301504119,37.32,207.9,207.86,0.68]
[1757301504319,37.32,207.89,207.87,4.81069899]
[1757301504533,37.32,207.89,207.88,0.68]
[1757301505321,14.44495269,207.95,207.88,0.68]
[1757301505527,2.39451617,207.92,207.88,0.68]
[1757301506131,1.01199996,207.99,207.9,26.0]
[1757301506334,2.39451617,207.96,207.91,5.48977345]
[1757301506543,2.39451617,207.94,207.92,0.68]
[1757301506729,37.32,207.93,207.9,26.0]
[1757301507244,37.32,207.93,207.91,0.68]
[1757301507836,37.32,207.93,207.92,0.68]
[1757301508145,39.71451617,207.93,207.87,28.39451617]
[1757301508353,2.39451617,207.92,207.88,0.68]
[1757301509447,2.39451617,207.92,207.88,5.49044403]
[1757301509649,2.39451617,207.92,207.89,0.68]
[1757301510148,2.39451617,207.92,207.89,5.49018367]
[1757301510358,2.39451617,207.92,207.9,0.68]
[1757301511270,2.39451617,207.92,207.88,4.81046381]
[1757301511271,2.39451617,207.92,207.88,0.68]
[1757301511427,2.39451617,207.91,207.88,0.68]
[1757301511749,39.71451617,207.9,207.88,26.68]
[1757301512248,39.71451617,207.9,207.88,26.0]
[1757301512444,2.39451617,207.89,207.86,26.68]
[1757301512637,2.39451617,207.87,207.86,26.0]
[1757301512838,39.71451617,207.87,207.86,26.0]
[1757301513244,39.71451617,207.87,207.83,0.68]
[1757301513446,2.39451617,207.86,207.84,0.68]
[1757301513648,2.39451617,207.86,207.85,0.68]
[1757301514336,2.39451617,207.86,207.83,4.81153792]
[1757301514541,37.32,207.87,207.84,0.68]
[1757301514730,39.71451617,207.86,207.85,0.68]
[1757301515349,2.39451617,207.86,207.85,0.68]
[1757301515548,37.34,207.86,207.85,0.68]
[1757301516855,37.34,207.86,207.85,5.4911014]
[1757301517059,5.5093283,207.93,207.85,5.4911014]
[1757301517238,2.39451617,207.89,207.86,0.67]
[1757301517435,2.39451617,207.9,207.86,0.67]
[1757301517638,2.39451617,207.91,207.86,3.06451617]
[1757301517839,37.34,207.9,207.86,2.39451617]
[1757301518138,2.39451617,207.91,207.88,4.81046757]
[1757301518336,37.34,207.9,207.88,5.48046757]
[1757301518536,37.34,207.89,207.88,0.67]
[1757301519053,37.34,207.89,207.86,5.48075857]
[1757301519659,37.34,207.89,207.87,0.67]
[1757301520732,0.7,207.93,207.88,5.48046757]
[1757301520944,3.75135048,207.91,207.88,4.81046757]
[1757301521153,3.75135048,207.91,207.86,5.48075932]
[1757301521353,3.75135048,207.91,207.87,0.67]
[1757301521540,3.75135048,207.9,207.86,4.81075932]
[1757301521747,37.34,207.89,207.87,0.67]
[1757301522067,37.34,207.89,207.88,0.67]
[1757301522250,3.75135048,207.9,207.88,5.48046757]
[1757301522558,3.75135048,207.91,207.88,5.48046757]
[1757301522753,37.34,207.9,207.87,4.81068841]
[1757301522957,3.75135048,207.92,207.89,0.67]
[1757301523257,0.7,207.95,207.89,0.67]
[1757301523258,37.34,207.91,207.89,0.67]
[1757301523455,37.34,207.9,207.87,8.56203889]
[1757301523860,15.44999969,207.96,207.89,3.75135048]
[1757301524052,3.75135048,207.94,207.89,3.75135048]
[1757301524242,4.45135048,207.94,207.9,0.67]
[1757301524743,0.7,207.94,207.9,4.42135048]
[1757301525060,37.34,207.95,207.91,0.67]
[1757301525265,0.7,207.94,207.89,26.0]
[1757301525558,3.75135048,207.94,207.86,4.8108275]
[1757301525759,3.75135048,207.88,207.85,0.03]
[1757301525970,37.34,207.87,207.85,0.03]
[1757301528658,0.7,207.86,207.85,0.03]
[1757301529964,37.34,207.87,207.85,0.03]
[1757301530270,37.34,207.86,207.85,0.7]
[1757301530568,37.34,207.86,207.85,0.03]
[1757301532253,38.04,207.86,207.85,0.03]
[1757301533062,37.34,207.86,207.85,0.03]
[1757301534776,37.34,207.86,207.85,0.7]
[1757301535167,37.34,207.86,207.85,0.03]
[1757301535353,38.04,207.86,207.85,0.03]
[1757301535881,37.34,207.86,207.85,0.03]
[1757301536662,41.79135048,207.86,207.85,0.03]
[1757301540077,38.04,207.86,207.85,0.03]
[1757301540450,41.79135048,207.86,207.85,0.03]
[1757301541882,46.60228091,207.86,207.85,0.03]
[1757301543588,41.79135048,207.86,207.85,0.03]
[1757301544581,38.04,207.86,207.85,0.03]
[1757301544771,41.09135048,207.86,207.85,0.03]
[1757301544965,37.34,207.86,207.85,0.03]
[1757301545186,41.79135048,207.86,207.85,0.03]
[1757301545385,37.34,207.86,207.85,0.03]
[1757301545564,41.09135048,207.86,207.85,0.03]
[1757301545886,41.78135048,207.86,207.85,0.03]
[1757301546190,37.34,207.86,207.85,0.03]
[1757301546686,41.78135048,207.86,207.85,0.03]
[1757301547777,41.09135048,207.86,207.85,0.03]
[1757301548767,37.34,207.86,207.85,0.03]
[1757301548989,37.34,207.86,207.85,0.73]
[1757301549388,37.34,207.86,207.85,0.03]
[1757301549769,37.34,207.86,207.85,5.54116189]
[1757301551889,37.34,207.86,207.85,0.73]
[1757301552075,37.34,207.86,207.85,4.84116189]
[1757301552901,37.34,207.86,207.85,0.03]
[1757301553673,37.34,207.86,207.85,4.84116189]
[1757301553882,38.03,207.86,207.85,0.03]
[1757301554282,37.34,207.86,207.85,0.03]
[1757301555893,41.78135048,207.86,207.85,0.03]
[1757301558872,38.03,207.86,207.85,0.03]
[1757301559273,37.34,207.86,207.85,0.03]
[1757301559497,38.03,207.86,207.85,0.03]
[1757301560282,41.78135048,207.86,207.85,0.03]
[1757301560686,38.03,207.86,207.85,0.03]
[1757301560877,0.69,207.86,207.85,0.03]
[1757301561101,38.03,207.86,207.85,0.03]
[1757301561279,3.75135048,207.88,207.85,0.03]
[1757301561475,37.34,207.87,207.85,4.48135048]
[1757301561798,37.34,207.87,207.85,0.03]
[1757301561996,4.44135048,207.86,207.85,0.03]
[1757301562879,0.69,207.86,207.85,0.03]
[1757301568005,9.25228091,207.86,207.85,0.03]
[1757301569507,4.44135048,207.86,207.85,0.03]
[1757301570014,9.25228091,207.86,207.85,0.03]
[1757301571715,4.44135048,207.86,207.85,0.03]
[1757301572101,9.25228091,207.86,207.85,0.03]
[1757301572304,4.44135048,207.86,207.85,0.03]
[1757301572820,41.78135048,207.86,207.85,0.03]
[1757301574006,46.59228091,207.86,207.85,0.03]
[1757301574522,48.51938808,207.86,207.85,0.03]
[1757301574815,11.17938808,207.86,207.85,0.03]
[1757301574991,48.51938808,207.86,207.85,0.03]
[1757301575416,11.17938808,207.86,207.85,0.03]
[1757301575597,46.59228091,207.86,207.85,0.03]
[1757301575805,48.51938808,207.86,207.85,0.03]
[1757301579290,62.11498209,207.86,207.85,0.03]
[1757301579892,21.02363161,207.86,207.85,0.03]
[1757301580094,62.11498209,207.86,207.85,0.03]
[1757301580391,60.76676589,207.86,207.85,0.03]
[1757301580795,23.42676589,207.86,207.85,0.03]
[1757301581015,45.24406471,207.86,207.85,0.03]
[1757301582917,42.84093043,207.86,207.85,0.03]
[1757301583110,45.24406471,207.86,207.85,0.03]
[1757301584328,7.90406471,207.86,207.85,0.03]
[1757301584520,45.24406471,207.86,207.85,0.03]
[1757301584720,40.43313428,207.86,207.85,0.03]
[1757301585438,0.71,207.9,207.85,0.7]
[1757301585609,2.40313428,207.87,207.85,0.7]
[1757301585807,39.74313428,207.86,207.85,0.7]
[1757301586001,39.74313428,207.86,207.85,0.03]
[1757301586725,39.74313428,207.86,207.85,0.7]
[1757301587224,39.74313428,207.86,207.85,0.03]
[1757301587707,39.74313428,207.86,207.85,0.7]
[1757301587907,39.74313428,207.86,207.85,0.03]
[1757301588725,2.63682868,207.88,207.85,0.03]
[1757301589019,1.92682868,207.88,207.85,0.7]
[1757301589222,37.34,207.87,207.85,0.7]
[1757301589725,37.34,207.87,207.86,0.67]
[1757301590226,39.74313428,207.87,207.85,0.03]
[1757301590402,37.34,207.87,207.85,0.03]
[1757301590601,37.34,207.87,207.85,0.7]
[1757301591219,7.44668113,207.9,207.86,0.67]
[1757301591220,4.32977734,207.9,207.86,0.67]
[1757301591402,37.34,207.89,207.87,0.67]
[1757301591898,2.40313428,207.88,207.85,0.03]
[1757301592098,28.40313428,207.86,207.85,0.03]
[1757301592513,29.11313428,207.86,207.85,0.03]
[1757301592721,33.92406471,207.86,207.85,0.03]
[1757301592919,35.85107904,207.86,207.85,0.03]
[1757301593130,67.67014861,207.86,207.85,0.03]
[1757301593335,41.67014861,207.86,207.85,0.03]
[1757301593540,39.74313428,207.86,207.85,0.03]
[1757301594316,45.26406471,207.86,207.85,0.03]
[1757301594516,40.45313428,207.86,207.85,0.03]
[1757301596235,39.74313428,207.86,207.85,0.03]
[1757301596438,37.34,207.86,207.85,0.7]
[1757301597932,37.34,207.86,207.85,5.51116189]
[1757301600007,37.34,207.86,207.85,7.91429617]
[1757301600625,37.34,207.86,207.85,5.51116189]
[1757301600821,37.34,207.86,207.85,0.03]
[1757301605926,37.34,207.86,207.85,0.73]
[1757301606243,37.34,207.86,207.85,0.03]
[1757301607239,37.34,207.86,207.85,3.13313428]
[1757301608141,37.34,207.86,207.85,7.94429617]
[1757301609530,37.34,207.86,207.85,3.13313428]
[1757301610038,37.34,207.86,207.85,7.94429617]
[1757301611332,37.34,207.86,207.85,0.03]
[1757301612445,38.06,207.86,207.85,0.03]
[1757301613229,45.27406471,207.86,207.85,0.03]
[1757301613535,40.46313428,207.86,207.85,0.03]
[1757301613730,37.34,207.86,207.85,0.03]
[1757301614130,39.77313428,207.86,207.85,3.13313428]
[1757301614330,37.32,207.86,207.85,3.13313428]
[1757301615539,37.32,207.86,207.85,0.03]
[1757301615724,38.04,207.86,207.85,0.03]
[1757301620050,37.32,207.86,207.85,0.03]
[1757301620355,38.04,207.86,207.85,0.03]
[1757301620855,37.32,207.86,207.85,0.03]
[1757301625446,38.04,207.86,207.85,0.03]
[1757301625764,40.44313428,207.86,207.85,0.03]
[1757301626061,45.25406471,207.86,207.85,0.03]
[1757301626435,47.18089339,207.86,207.85,0.03]
[1757301628763,50.7854122,207.86,207.85,0.03]
[1757301629261,64.38100621,207.86,207.85,0.03]
[1757301630445,64.37903363,207.86,207.85,0.03]
[1757301632050,41.99872829,207.83,207.82,1e-08]
[1757301632248,79.31872829,207.83,207.82,1e-08]
[1757301632562,80.03872829,207.83,207.82,1e-08]
[1757301632751,83.63826519,207.83,207.82,1e-08]
[1757301632950,85.56592958,207.83,207.82,1e-08]
[1757301633150,81.96639268,207.83,207.82,1e-08]
[1757301633545,49.45801756,207.83,207.82,1e-08]
[1757301633745,86.77801756,207.83,207.82,1e-08]
[1757301634360,49.45801756,207.83,207.82,1e-08]
[1757301634561,86.77801756,207.83,207.82,1e-08]
[1757301635369,90.37327892,207.83,207.82,1e-08]
[1757301635543,30.42335337,207.81,207.8,0.03]
[1757301635743,26.0,207.78,207.7,0.65]
[1757301635975,2.40313428,207.72,207.7,0.65]
[1757301636147,2.40313428,207.72,207.67,2.40313428]
[1757301636148,37.32,207.71,207.67,2.40313428]
[1757301636549,37.32,207.71,207.67,7.21842799]
[1757301636754,2.40313428,207.73,207.68,0.65]
[1757301636970,37.34,207.72,207.68,3.05313428]
[1757301637171,37.34,207.72,207.69,0.65]
[1757301638255,37.34,207.72,207.68,2.40313428]
[1757301638455,37.34,207.72,207.69,0.65]
[1757301638670,37.34,207.72,207.7,0.65]
[1757301640764,37.34,207.71,207.7,0.65]
[1757301642161,37.34,207.71,207.7,7.86777077]
[1757301642360,37.34,207.71,207.7,9.2218552]
[1757301642561,3.75721871,207.75,207.7,5.46463649]
[1757301642862,37.34,207.74,207.71,0.65]
[1757301643063,37.34,207.73,207.71,0.65]